fUST/lending_fUST_20240708
["ID","MTS","AMOUNT","RATE_DAILY","PERIOD"]
[331424120,1720384139676,-892.8620855,0.00025501,2]
[331424121,1720384139713,-892.8620855,0.00025501,2]
[331424129,1720384139932,-892.8620855,0.00025501,2]
[331424130,1720384139973,-256.70456081,0.00025501,2]
[331424131,1720384164116,-2570.709692,0.00025501,2]
[331424132,1720384164494,-951.56790185,0.00025501,2]
[331424134,1720384164534,-646.81797664,0.00025501,2]
[331424147,1720384167100,-21348.6259725,0.00025501,2]
[331424188,1720384232822,-177.436023,0.00021096,2]
[331424190,1720384232832,-1522.90997001,0.00025501,2]
[331424192,1720384232842,-247.17796158,0.00025902,2]
[331424194,1720384232851,-166.666666,0.00026222,2]
[331424195,1720384232860,-24900.0,0.00026735,2]
[331424197,1720384232870,-209.0910573,0.00026866,2]
[331424199,1720384232881,-163.42871727,0.00027084,2]
[331424202,1720384232891,-177.436023,0.00027195,2]
[331424204,1720384232901,-162.316189,0.00027517,2]
[331424205,1720384232911,-10617.19710884,0.00029793,2]
[331424207,1720384232922,-166.666666,0.00029796,2]
[331424209,1720384232934,-384.0,0.0003,2]
[331424211,1720384232943,-150.0,0.0003056,2]
[331424213,1720384232955,-163.42871726,0.00030793,2]
[331424215,1720384232964,-250.0,0.00031108,2]
[331424217,1720384232974,-150.0,0.00031213,2]
[331424219,1720384232983,-350.0,0.00031656,2]
[331424221,1720384232992,-250.0,0.0003176,2]
[331424223,1720384233001,-233.42161421,0.00032204,2]
[331424225,1720384233010,-350.0,0.00032308,2]
[331424227,1720384233019,-177.436023,0.00033295,2]
[331424229,1720384233029,-163.42871726,0.00034503,2]
[331424231,1720384233038,-1404.59594688,0.00034642,2]
[331424233,1720384233047,-1501.24478952,0.00035292,2]
[331424235,1720384233058,-5290.32470551,0.00035955,2]
[331424237,1720384233067,-4991.83159602,0.00036352,2]
[331424239,1720384233076,-171.58666019,0.00036352,30]
[331424241,1720384233085,-1252.49,0.00036479,30]
[331424243,1720384233094,-571.76487024,0.00037523,4]
[331424245,1720384233103,-163.42871726,0.00038212,2]
[331424247,1720384233112,-154.77557542,0.00039177,2]
[331424249,1720384233121,-154.62117811,0.00039177,2]
[331424251,1720384233130,-154.62117811,0.00039177,2]
[331424253,1720384233140,-753.87417621,0.00039393,2]
[331424255,1720384233149,-177.436023,0.00039394,2]
[331424257,1720384233159,-1456.09128316,0.000399,2]
[331424259,1720384233169,-6024.62452896,0.0003998,5]
[331424260,1720384233178,-8731.90044413,0.00039987,3]
[331424262,1720384233188,-6024.62452896,0.0003999,5]
[331424264,1720384233197,-435.0,0.00039999,2]
[331424265,1720384233206,-4781.155142,0.0004,2]
[331424266,1720384233215,-36978.66489383,0.0004,2]
[331424268,1720384233225,-4834.06010409,0.0004,2]
[331424269,1720384233234,-149.999999,0.0004,120]
[331424271,1720384233243,-268.92743618,0.00040807,4]
[331424272,1720384233252,-163.42871726,0.00041922,28]
[331424273,1720384233262,-1456.09128316,0.0004265,2]
[331424274,1720384233271,-458.06028568,0.00045,120]
[331424275,1720384233280,-1456.09128316,0.000454,2]
[331424276,1720384233289,-177.436023,0.00045494,2]
[331424277,1720384233298,-163.42871726,0.00045631,28]
[331424278,1720384233307,-1405.0,0.00046977,2]
[331424279,1720384233316,-1456.09128316,0.0004815,2]
[331424280,1720384233325,-151.57276841,0.00048729,30]
[331424281,1720384233335,-1000.0,0.00049,49]
[331424282,1720384233345,-500.0,0.00049315,120]
[331424283,1720384233355,-500.0,0.00049315,120]
[331424284,1720384233364,-500.0,0.00049315,2]
[331424285,1720384233373,-500.0,0.00049315,2]
[331424286,1720384233383,-163.42871726,0.00049341,28]
[331424287,1720384233393,-500.0,0.00049589,120]
[331424288,1720384233403,-500.0,0.00049589,120]
[331424289,1720384233414,-500.0,0.00049863,120]
[331424290,1720384233427,-500.0,0.00049863,120]
[331424291,1720384233436,-174.745,0.00049977,2]
[331424292,1720384233448,-3938.873475,0.0005,50]
[331424379,1720384246814,-302.69857441,0.00025869,2]
[331424380,1720384246824,-500.0,0.00029792,2]
[331424382,1720384246833,-227.26279622,0.00037899,2]
[331424396,1720384923709,-150.293836,0.00021096,2]
[331424422,1720385352147,-47.082543,0.00021096,2]
[331424423,1720385352170,-166.346271,0.00021096,2]
[331424424,1720385352193,-166.666666,0.00024179,2]
[331424425,1720385352215,-166.666666,0.00025003,2]
[331424426,1720385352237,-300.0,0.00025105,2]
[331424427,1720385352260,-300.0,0.00025105,2]
[331424428,1720385352282,-877.27582668,0.00025106,2]
[331424429,1720385354113,-622.13319779,0.00025106,2]
[331424430,1720385362113,-23400.59097553,0.00025106,2]
[331424431,1720385362137,-19153.97641209,0.00025501,2]
[331424432,1720385373122,-3444.51627284,0.00025501,2]
[331424443,1720385432210,-7401.50731507,0.00025501,2]
[331424445,1720385432221,-166.666666,0.00025827,2]
[331424446,1720385432232,-166.666666,0.00026651,2]
[331424447,1720385432243,-500.0,0.00027397,2]
[331424449,1720385432259,-500.0,0.00027397,2]
[331424451,1720385432271,-500.0,0.00027397,2]
[331424453,1720385432282,-300.0,0.00027397,2]
[331424454,1720385432293,-166.666666,0.00027475,2]
[331424455,1720385432304,-166.346271,0.00028822,2]
[331424456,1720385432315,-159.347608,0.00031006,2]
[331424457,1720385432326,-150.29383564,0.000317,2]
[331424458,1720385432347,-256.67016396,0.00034771,2]
[331424459,1720385432359,-187.66006725,0.000354,2]
[331424460,1720385432369,-1502.56485144,0.00035999,4]
[331424461,1720385432379,-166.346271,0.00036548,2]
[331424462,1720385432390,-302.69857441,0.00038499,2]
[331424463,1720385432400,-2280.0,0.00041,7]
[331424464,1720385432410,-166.346271,0.00044274,2]
[331424465,1720385432421,-2580.99013636,0.00048248,2]
[331424684,1720386333150,-196.944773,0.00021096,2]
[331424685,1720386333173,-584.66973004,0.0003881,2]
[331424688,1720386572208,-166.346271,0.00021096,2]
[331424689,1720386572229,-166.346271,0.00031631,2]
[331424690,1720386616799,174.41530961,0.00031631,4]
[331424701,1720386632057,-586.23740997,0.00035808,2]
[331424705,1720386632140,-510.30323151,0.00035808,2]
[331424767,1720386638158,-23803.45935852,0.00035808,2]
[331424768,1720386638169,-966.46240209,0.00037259,4]
[331424769,1720386638179,-256.67016396,0.00039177,2]
[331424770,1720386638189,-256.67016396,0.00039177,2]
[331424771,1720386638199,-162.316189,0.00039435,2]
[331424772,1720386638209,-373.91027358,0.00039999,4]
[331424773,1720386638219,-3153.32229752,0.00039999,2]
[331424774,1720386638229,-166.346271,0.00042167,2]
[331424775,1720386638239,-163.42871726,0.00047902,28]
[331424776,1720386638249,-500.0,0.00048202,7]
[331424777,1720386638259,-500.0,0.00048202,7]
[331424778,1720386638272,-500.0,0.00048202,7]
[331424779,1720386638283,-480.0,0.00048202,7]
[331424780,1720386638293,-5290.32470551,0.00048203,2]
[331424781,1720386638304,-6192.59186767,0.00048248,20]
[331424782,1720386638314,-500.0,0.00049315,120]
[331424783,1720386638325,-502.53875866,0.00049315,10]
[331424784,1720386638336,-500.0,0.00049315,120]
[331424785,1720386638347,-500.0,0.00049589,120]
[331424786,1720386638357,-500.0,0.00049589,120]
[331424787,1720386638367,-12440.35449907,0.0004963,2]
[331424788,1720386638377,-500.0,0.00049863,120]
[331424789,1720386638391,-500.0,0.00049863,120]
[331424790,1720386638401,-206.2377939,0.00049973,2]
[331424791,1720386638412,-6061.126525,0.0005,50]
[331424792,1720386638423,-154.62117811,0.0005,30]
[331424793,1720386638434,-1000.0,0.0005,50]
[331424794,1720386638445,-3000.0,0.000501,120]
[331424795,1720386638456,-102.67433302,0.00050136,120]
[331424976,1720386646365,-397.32566698,0.00050136,120]
[331424977,1720386646375,-456.10574527,0.00050136,120]
[331424978,1720386646419,-43.89425473,0.00050136,120]
[331424979,1720386646428,-500.0,0.00050136,120]
[331424980,1720386646439,-7.06366564,0.0005041,120]
[331425010,1720387559179,-176.566265,0.00021096,2]
[331425011,1720387559298,-166.346271,0.00021096,2]
[331425012,1720387559321,-166.346271,0.00035582,2]
[331425013,1720387559340,-846.00976173,0.00039177,4]
[331425014,1720387559359,-136.60443631,0.00040535,2]
[331425015,1720387629441,-23.01485169,0.00040535,2]
[331425016,1720387629466,-15915.8080993,0.00040676,2]
[331425017,1720387629486,-150.0,0.00046625,2]
[331425018,1720387629506,-877.0,0.00046625,2]
[331425019,1720387629530,-153.0,0.00047123,120]
[331425020,1720387629551,-5180.40071848,0.00048794,2]
[331425021,1720387629572,-5180.40071848,0.00049181,2]
[331425022,1720387629592,-5180.40071848,0.00049549,2]
[331425023,1720387629613,-550.76810705,0.00049557,120]
[331425024,1720387629636,-500.0,0.00049557,7]
[331425025,1720387629657,-471.240541,0.00049557,7]
[331425026,1720387629688,-500.0,0.00049557,120]
[331425027,1720387629710,-5180.40071848,0.00049738,2]
[331425028,1720387629732,-206.2377939,0.00049973,2]
[331425029,1720387629753,-286.33692091,0.0005,30]
[331425030,1720387629774,-176.566265,0.00050068,2]
[331425031,1720387629795,-166.346271,0.00050068,2]
[331425032,1720387629815,-5180.40071848,0.00050239,2]
[331425033,1720387629835,-492.93633436,0.0005041,120]
[331425034,1720387629856,-500.0,0.0005041,120]
[331425035,1720387629876,-167.25364384,0.0005041,4]
[331425036,1720387629896,-5180.40071848,0.00050613,2]
[331425037,1720387629922,-500.0,0.00050684,120]
[331425038,1720387629942,-261.05055106,0.00050684,120]
[331425039,1720387629965,-500.0,0.00050696,120]
[331425040,1720387629985,-500.0,0.00050696,120]
[331425041,1720387630004,-500.0,0.00050696,10]
[331425042,1720387630024,-500.0,0.00050696,2]
[331425043,1720387630044,-2000.0,0.000507,120]
[331425044,1720387630064,-5180.40071849,0.00050719,2]
[331425045,1720387630084,-500.0,0.00050799,120]
[331425046,1720387630104,-207.51081893,0.00050799,120]
[331425047,1720387630124,-500.0,0.00050799,120]
[331425048,1720387630144,-472.82785143,0.00050799,31]
[331425049,1720387630164,-322.4172584,0.00050799,120]
[331425050,1720387630184,-500.0,0.00050799,120]
[331425051,1720387630204,-500.0,0.00050799,120]
[331425052,1720387630223,-500.0,0.00050799,120]
[331425053,1720387630244,-392.19742097,0.00050799,120]
[331425054,1720387630263,-500.0,0.00050799,120]
[331425055,1720387630283,-530.07978738,0.00050799,120]
[331425056,1720387630303,-435.21460431,0.00050799,120]
[331425057,1720387630328,-380.56438129,0.00050799,120]
[331425058,1720387630349,-151.0,0.00050799,120]
[331425059,1720387630369,-999.0,0.00050799,120]
[331425060,1720387630391,-7577.75253577,0.000508,61]
[331425061,1720387630413,-1000.0,0.000508,120]
[331425062,1720387630434,-605809.72309521,0.000508,15]
[331425063,1720387631177,-663275.48374,0.000508,15]
[331425064,1720387633149,-2081.7298544,0.000507,2]
[331425065,1720387633275,-580.58065526,0.000508,15]
[331425066,1720387637171,-1091.12,0.0005079,3]
[331425067,1720387637193,-10115.45694,0.000508,15]
[331425068,1720387644682,-909.27,0.0005079,3]
[331425069,1720387644702,-75092.82367,0.000508,15]
[331425070,1720387648380,-162965.35103,0.000508,15]
[331425071,1720387653119,-208995.76391,0.000508,15]
[331425230,1720387839080,-2935.36137123,0.00043287,2]
[331425231,1720387839102,-3000.0,0.000501,120]
[331425232,1720387839112,-2000.0,0.000507,120]
[331425233,1720387839124,-66135.70041804,0.000508,15]
[331425309,1720387843836,-9354.59174895,0.000508,15]
[331425310,1720387843848,-300.548,0.000508,120]
[331425311,1720387843858,-500.0,0.00050958,120]
[331425312,1720387843867,-500.0,0.0005097,120]
[331425313,1720387843876,-500.0,0.0005097,120]
[331425314,1720387843886,-757.72,0.0005099,3]
[331425315,1720387843895,-631.44,0.0005099,3]
[331425316,1720387843904,-526.2,0.0005099,3]
[331425317,1720387843913,-11478.4951552,0.0005099,6]
[331425318,1720387843922,-10759.83811885,0.00051,120]
[331425319,1720387843934,-56795.0,0.00051,120]
[331425335,1720387846654,-7483.85124012,0.00051,120]
[331425336,1720387846664,-2511.64882434,0.00051,14]
[331425337,1720387846673,-1000.0,0.00051,51]
[331425338,1720387846683,-300.09993554,0.00051,85]
[331425393,1720388741178,-171.894147,0.00021096,2]
[331425394,1720388741198,-166.346271,0.00021096,2]
[331425395,1720388741217,-835.9967832,0.00035,2]
[331425401,1720388849098,-5158.34574687,0.00035,2]
[331425548,1720389040662,-737.02338188,0.00035,2]
[331425595,1720389044048,-248.35763412,0.00035,2]
[331425606,1720389047015,-3376.34567031,0.00035,2]
[331425607,1720389047026,-302.20761098,0.00035,4]
[331425608,1720389047037,-257.69157416,0.0003624,2]
[331425609,1720389047046,-500.0,0.00036351,15]
[331425610,1720389047056,-500.0,0.00036351,15]
[331425611,1720389047065,-500.0,0.00036351,15]
[331425612,1720389047074,-529.01603536,0.00036351,15]
[331425613,1720389047083,-169.89067059,0.00036351,15]
[331425614,1720389047097,-27670.5213955,0.00036352,2]
[331425615,1720389047107,-151.42138979,0.00037174,2]
[331425616,1720389047116,-300.0,0.00037274,2]
[331425617,1720389047125,-510.05108817,0.00037274,2]
[331425618,1720389047138,-288.69177538,0.00037274,2]
[331425619,1720389047148,-1554.07391532,0.0004,2]
[331425620,1720389047157,-151.42138978,0.00040348,28]
[331425621,1720389047168,-171.894147,0.00040411,2]
[331425622,1720389047180,-363.0880048,0.00041941,2]
[331425623,1720389047191,-151.42138978,0.00043522,28]
[331425624,1720389047202,-166.346271,0.00044274,2]
[331425625,1720389047213,-160.977689,0.00044311,2]
[331425626,1720389047222,-718.71241779,0.000448,120]
[331425627,1720389047232,-151.42138978,0.00046695,28]
[331425628,1720389047241,-151.42138978,0.00049869,28]
[331425629,1720389047251,-500.0,0.00049999,120]
[331425630,1720389047364,-865.0,0.0005,5]
[331425631,1720389047374,-1446.45609573,0.0005,7]
[331425632,1720389047385,-3000.0,0.000501,120]
[331425633,1720389047395,-228.68230034,0.00050273,120]
[331425634,1720389047406,-500.0,0.00050799,120]
[331425635,1720389047415,-500.0,0.00050799,120]
[331425636,1720389047426,-500.0,0.00050799,120]
[331425637,1720389047437,-500.0,0.00050989,120]
[331425638,1720389047447,-500.0,0.00050999,120]
[331425639,1720389047456,-500.0,0.00050999,120]
[331425640,1720389047466,-308.95494617,0.00050999,120]
[331425641,1720389047476,-199.467055,0.00051,4]
[331425642,1720389047487,-3000.0,0.00051,85]
[331425643,1720389047497,-4768.778524,0.0005101,85]
[331425644,1720389047508,-1381.81,0.00051232,120]
[331425645,1720389047519,-500.0,0.00051232,120]
[331425646,1720389047528,-500.0,0.00051232,120]
[331425647,1720389047539,-165.93919918,0.00051232,120]
[331425648,1720389047547,-500.0,0.00051244,120]
[331425649,1720389047557,-500.0,0.00051244,120]
[331425650,1720389047566,-2000.0,0.000514,120]
[331425651,1720389047575,-503.65970081,0.00051405,2]
[331425652,1720389047585,-503.65970081,0.00051477,2]
[331425653,1720389047598,-500.0,0.00051489,120]
[331425654,1720389047608,-15495.9684595,0.0005149,6]
[331425655,1720389047617,-438.5,0.0005149,3]
[331425656,1720389047627,-365.41,0.0005149,3]
[331425657,1720389047636,-304.51,0.0005149,3]
[331425658,1720389047646,-500.0,0.00051499,120]
[331425659,1720389047656,-500.0,0.00051499,120]
[331425660,1720389047666,-500.0,0.00051499,120]
[331425661,1720389047677,-999.0,0.00051499,120]
[331425662,1720389047688,-160.6358732,0.000515,61]
[331425663,1720389047697,-148345.209999,0.000515,120]
[331425664,1720389047706,-202.64050775,0.00051505,31]
[331425665,1720389047715,-168.08460899,0.00051505,120]
[331425666,1720389047725,-464.16931438,0.00051505,120]
[331425667,1720389047734,-459.02393622,0.00051505,120]
[331425668,1720389047743,-1381.81,0.00051506,120]
[331425669,1720389047753,-500.0,0.00051506,120]
[331425670,1720389047762,-500.0,0.00051506,120]
[331425671,1720389047771,-500.0,0.00051517,120]
[331425672,1720389047781,-500.0,0.00051518,120]
[331425673,1720389047790,-214.73599756,0.00051518,120]
[331425674,1720389047799,-503.65970081,0.00051549,2]
[331425675,1720389047808,-154.76146562,0.00051557,85]
[331425676,1720389047818,-503.65970081,0.0005162,2]
[331425677,1720389047827,-503.65970081,0.00051692,2]
[331425678,1720389047836,-752.50829927,0.000517,120]
[331425679,1720389047846,-87810.4879371,0.00051778,6]
[331425680,1720389047855,-1381.81,0.0005178,120]
[331425681,1720389047865,-500.0,0.0005178,120]
[331425682,1720389047884,-500.0,0.0005178,120]
[331425683,1720389047895,-3788.87626789,0.00051788,61]
[331425684,1720389047905,-1449434.86782312,0.00051788,120]
[331425685,1720389047915,-211.09999705,0.00051792,120]
[331425686,1720389047926,-373.0,0.000518,30]
[331425687,1720389047936,-1028.01532245,0.000518,120]
[331425688,1720389047945,-500.0,0.00051859,120]
[331425689,1720389047955,-500.0,0.00051859,120]
[331425690,1720389047965,-64330.53630231,0.0005186,30]
[331425691,1720389047974,-10000.0,0.00052,52]
[331425692,1720389047984,-500.0,0.00052,120]
[331425693,1720389047993,-8051.88828492,0.00052,120]
[331425694,1720389048003,-1000.0,0.00052,52]
[331425695,1720389048013,-999.0,0.00052047,120]
[331425696,1720389048022,-1381.81,0.00052054,120]
[331425697,1720389048035,-500.0,0.00052054,120]
[331425698,1720389048044,-500.0,0.00052054,120]
[331425699,1720389048054,-1381.81,0.00052328,120]
[331425700,1720389048064,-500.0,0.00052328,120]
[331425701,1720389048077,-500.0,0.00052328,120]
[331425702,1720389048087,-160.0,0.00052456,3]
[331425703,1720389048105,-160.0,0.00052456,5]
[331425704,1720389048121,-999.0,0.00052595,120]
[331425705,1720389048131,-150.0,0.00052601,60]
[331425706,1720389048141,-1381.81,0.00052602,120]
[331425707,1720389048152,-500.0,0.00052602,120]
[331425708,1720389048163,-500.0,0.00052602,120]
[331425709,1720389048174,-1381.81,0.00052876,120]
[331425710,1720389048185,-500.0,0.00052876,120]
[331425711,1720389048194,-500.0,0.00052876,120]
[331425712,1720389048205,-595.55904154,0.000529,120]
[331425713,1720389048215,-500.0,0.00052909,120]
[331425714,1720389048224,-500.0,0.00052919,120]
[331425715,1720389048234,-433.74,0.00052919,120]
[331425716,1720389048244,-80888.60369769,0.0005292,30]
[331425717,1720389048253,-10000.0,0.00053,53]
[331425718,1720389048263,-1500.0,0.00053,30]
[331425719,1720389048272,-1500.0,0.00053,30]
[331425720,1720389048282,-1500.0,0.00053,30]
[331425721,1720389048291,-1380.87,0.00053,30]
[331425722,1720389048301,-400.84157942,0.00053,120]
[331425723,1720389048310,-45992.4133886,0.00053,120]
[331425724,1720389048319,-1000.0,0.00053,53]
[331425725,1720389048328,-151.42138978,0.00053043,28]
[331425726,1720389048337,-1422.28328651,0.0005313,7]
[331425727,1720389048347,-196.72454409,0.0005313,120]
[331425728,1720389048356,-198.92970617,0.0005313,120]
[331425729,1720389048366,-683.0,0.00053131,30]
[331425730,1720389048375,-683.0,0.00053131,30]
[331425731,1720389048384,-683.0,0.00053131,30]
[331425732,1720389048393,-683.0,0.00053131,30]
[331425733,1720389048402,-13154873.56893152,0.00053131,30]
[331425743,1720389509166,-2140.0,0.00049315,60]
[331425744,1720389509190,-2140.0,0.00049589,60]
[331425745,1720389509214,-2140.0,0.00049863,60]
[331425746,1720389509239,-500.0,0.00049998,120]
[331425747,1720389509262,-2140.0,0.00050136,60]
[331425748,1720389509285,-262.33,0.00050272,120]
[331425749,1720389509307,-1440.0,0.0005041,60]
[331425750,1720389509329,-150.0,0.00051,85]
[331425751,1720389509354,-2000.0,0.000514,120]
[331425752,1720389509376,-4037.0,0.00052,120]
[331425753,1720389509398,-999.0,0.0005313,120]
[331425754,1720389509420,-500.0,0.0005313,120]
[331425755,1720389509443,-500.0,0.0005313,120]
[331425756,1720389509464,-478.79391091,0.0005313,120]
[331425757,1720389509486,-346.33268621,0.0005313,120]
[331425758,1720389509510,-1894.43813394,0.00053131,61]
[331425759,1720389509535,-2211865.81625709,0.00053131,30]
[331425760,1720389509558,-1381.81,0.0005315,120]
[331425761,1720389509580,-500.0,0.0005315,120]
[331425762,1720389509602,-500.0,0.0005315,120]
[331425763,1720389509626,-151.06716058,0.000533,120]
[331425764,1720389509648,-1381.81,0.00053424,120]
[331425765,1720389509671,-500.0,0.00053424,120]
[331425766,1720389509694,-500.0,0.00053424,120]
[331425767,1720389509717,-3000.0,0.00053536,120]
[331425768,1720389509740,-150.0,0.00053601,60]
[331425769,1720389509762,-151.0,0.00053644,120]
[331425770,1720389509784,-999.0,0.00053678,120]
[331425771,1720389509807,-1381.81,0.00053698,120]
[331425772,1720389509830,-500.0,0.00053698,120]
[331425773,1720389509852,-500.0,0.00053698,120]
[331425774,1720389509875,-1381.81,0.00053972,120]
[331425775,1720389509899,-500.0,0.00053972,120]
[331425776,1720389509922,-500.0,0.00053972,120]
[331425777,1720389509949,-600.0,0.00054,120]
[331425778,1720389509974,-999.0,0.00054226,120]
[331425779,1720389509998,-1381.81,0.00054246,120]
[331425780,1720389510022,-500.0,0.00054246,120]
[331425781,1720389510044,-498.29156712,0.00054246,120]
[331425782,1720389510067,-1000.0,0.000545,120]
[331425783,1720389510091,-1000.0,0.000545,120]
[331425784,1720389510114,-1000.0,0.000545,120]
[331425785,1720389510136,-1000.0,0.000545,120]
[331425786,1720389510159,-1000.0,0.000545,120]
[331425787,1720389510181,-1000.0,0.000545,120]
[331425788,1720389510204,-1000.0,0.000545,120]
[331425789,1720389510231,-1000.0,0.000545,120]
[331425790,1720389510253,-1000.0,0.000545,120]
[331425791,1720389510277,-1000.0,0.000545,120]
[331425792,1720389510300,-1000.0,0.000545,120]
[331425793,1720389510322,-1000.0,0.000545,120]
[331425794,1720389510347,-1381.81,0.0005452,120]
[331425795,1720389510372,-172.67,0.0005452,120]
[331425796,1720389510396,-151.0,0.00054548,120]
[331425797,1720389510422,-1000.0,0.000547,120]
[331425798,1720389510446,-1000.0,0.000547,120]
[331425799,1720389510469,-1000.0,0.000547,120]
[331425800,1720389510493,-1000.0,0.000547,120]
[331425801,1720389510517,-1000.0,0.000547,120]
[331425802,1720389510540,-1000.0,0.000547,120]
[331425803,1720389510563,-1000.0,0.000547,120]
[331425804,1720389510585,-1381.81,0.00054794,120]
[331425805,1720389510607,-500.0,0.00054794,120]
[331425806,1720389510632,-500.0,0.00054794,120]
[331425807,1720389510655,-500.0,0.00054794,120]
[331425808,1720389510680,-510.97628144,0.00054794,120]
[331425809,1720389510702,-502.12724864,0.00054794,120]
[331425810,1720389510725,-160.27685246,0.00054795,120]
[331425811,1720389510747,-160.27685246,0.00054795,120]
[331425812,1720389510834,-160.77,0.00054795,120]
[331425813,1720389510857,-160.40185246,0.00054795,120]
[331425814,1720389510880,-160.40185246,0.00054795,120]
[331425815,1720389510902,-160.40185246,0.00054795,120]
[331425816,1720389510925,-160.40185246,0.00054795,120]
[331425817,1720389510953,-160.40185246,0.00054795,120]
[331425818,1720389510976,-160.40185246,0.00054795,120]
[331425819,1720389510999,-160.40185246,0.00054795,120]
[331425820,1720389511022,-160.40185246,0.00054795,120]
[331425821,1720389511045,-160.40185246,0.00054795,120]
[331425822,1720389511069,-160.40185246,0.00054795,120]
[331425823,1720389511092,-160.40185246,0.00054795,120]
[331425824,1720389511115,-160.9,0.00054795,120]
[331425825,1720389511137,-500.0,0.00054795,120]
[331425826,1720389511158,-500.0,0.00054795,120]
[331425827,1720389511180,-500.735,0.00054795,120]
[331425828,1720389511202,-500.0,0.00054795,120]
[331425829,1720389511227,-500.0,0.00054795,120]
[331425830,1720389511249,-500.0,0.00054795,120]
[331425831,1720389511272,-500.0,0.00054795,120]
[331425832,1720389511294,-500.0,0.00054795,120]
[331425833,1720389511317,-500.0,0.00054795,120]
[331425834,1720389511338,-500.0,0.00054795,120]
[331425835,1720389511360,-500.0,0.00054795,120]
[331425836,1720389511381,-500.0,0.00054795,120]
[331425837,1720389511404,-500.0,0.00054795,120]
[331425838,1720389511427,-500.0,0.00054795,120]
[331425839,1720389511449,-500.0,0.00054795,120]
[331425840,1720389511470,-500.0,0.00054795,120]
[331425841,1720389511491,-500.0,0.00054795,120]
[331425842,1720389511513,-500.0,0.00054795,120]
[331425843,1720389511534,-500.0,0.00054795,120]
[331425844,1720389511555,-500.0,0.00054795,120]
[331425845,1720389511577,-500.0,0.00054795,120]
[331425846,1720389511598,-500.0,0.00054795,120]
[331425847,1720389511619,-500.0,0.00054795,120]
[331425848,1720389511640,-500.0,0.00054795,120]
[331425849,1720389511662,-500.0,0.00054795,120]
[331425850,1720389511684,-500.0,0.00054795,120]
[331425851,1720389511706,-500.0,0.00054795,120]
[331425852,1720389511728,-500.0,0.00054795,120]
[331425853,1720389511750,-500.0,0.00054795,120]
[331425854,1720389511772,-500.0,0.00054795,120]
[331425855,1720389511795,-500.0,0.00054795,120]
[331425856,1720389511816,-500.0,0.00054795,120]
[331425857,1720389511838,-500.0,0.00054795,120]
[331425858,1720389511859,-500.0,0.00054795,120]
[331425859,1720389511883,-500.0,0.00054795,120]
[331425860,1720389511906,-500.0,0.00054795,120]
[331425861,1720389511932,-500.0,0.00054795,120]
[331425862,1720389511954,-500.0,0.00054795,120]
[331425863,1720389511979,-500.0,0.00054795,120]
[331425864,1720389512001,-500.0,0.00054795,120]
[331425865,1720389512022,-500.0,0.00054795,120]
[331425866,1720389512045,-500.0,0.00054795,120]
[331425867,1720389512067,-500.0,0.00054795,120]
[331425868,1720389512090,-500.0,0.00054795,120]
[331425869,1720389512112,-500.0,0.00054795,120]
[331425870,1720389512133,-500.0,0.00054795,120]
[331425871,1720389512154,-500.0,0.00054795,120]
[331425872,1720389512176,-500.0,0.00054795,120]
[331425873,1720389512198,-500.0,0.00054795,120]
[331425874,1720389512220,-500.0,0.00054795,120]
[331425875,1720389512244,-500.0,0.00054795,120]
[331425876,1720389512266,-500.0,0.00054795,120]
[331425877,1720389512287,-500.0,0.00054795,120]
[331425878,1720389512312,-500.0,0.00054795,120]